bitfinex-derivatives/quotes_SOLF0:USTF0_20250320
["timestamp","ask_amount","ask_price","bid_price","bid_amount"]
[1742490489109,31.22,127.57,127.55,0.05443855]
[1742490489807,31.18,127.59,127.55,0.05443855]
[1742490491308,39.0214,127.59,127.56,7.8429]
[1742490491508,31.18,127.59,127.55,19.77458047]
[1742490491707,31.18,127.59,127.57,7.8424]
[1742490493012,31.18,127.59,127.58,7.8419]
[1742490493510,38.9403,127.61,127.58,7.8414]
[1742490494012,38.9403,127.61,127.58,7.90169097]
[1742490494408,7.8407,127.6,127.58,7.90169097]
[1742490494801,31.1,127.61,127.58,7.90169097]
[1742490495005,38.9405,127.61,127.58,7.90169097]
[1742490495714,38.9405,127.61,127.59,7.8413]
[1742490495911,38.9805,127.61,127.59,7.8413]
[1742490496215,31.14,127.61,127.59,7.8413]
[1742490496713,31.14,127.61,127.58,0.06029097]
[1742490497501,31.14,127.61,127.59,7.8413]
[1742490498312,38.9801,127.61,127.58,7.90179097]
[1742490498515,31.14,127.61,127.58,0.06029097]
[1742490498904,31.1,127.61,127.6,7.8404]
[1742490499916,1.9838,127.65,127.59,19.72014192]
[1742490500212,31.12,127.68,127.61,19.72014192]
[1742490500413,31.12,127.68,127.63,19.72014192]
[1742490500715,31.16,127.69,127.63,19.72014192]
[1742490501017,38.9955,127.69,127.64,7.89390521]
[1742490501210,31.16,127.69,127.64,7.89390521]
[1742490501410,31.16,127.69,127.64,0.05570521]
[1742490502012,7.8367,127.67,127.64,0.05570521]
[1742490503018,31.16,127.69,127.64,0.05570521]
[1742490503710,7.8366,127.67,127.64,0.05570521]
[1742490503913,31.16,127.69,127.64,0.05570521]
[1742490504210,7.8373,127.66,127.64,0.05570521]
[1742490504721,31.16,127.69,127.64,0.05570521]
[1742490505308,6.1258,127.71,127.64,0.05570521]
[1742490505514,31.16,127.7,127.64,0.05570521]
[1742490505918,7.8373,127.66,127.64,0.05570521]
[1742490506121,19.72014192,127.69,127.64,0.05570521]
[1742490506419,7.8376,127.65,127.64,0.05570521]
[1742490508614,7.8376,127.65,127.58,296.1542]
[1742490508615,7.8395,127.62,127.58,296.1542]
[1742490508920,31.12,127.63,127.58,258.8]
[1742490509115,31.1,127.63,127.58,258.8]
[1742490509712,7.8408,127.6,127.59,0.05505933]
[1742490510526,38.9208,127.6,127.59,0.05505933]
[1742490511630,31.14975983,127.62,127.59,0.05505933]
[1742490512224,7.8407,127.6,127.59,0.05505933]
[1742490513719,31.14975983,127.62,127.59,0.05505933]
[1742490513720,7.8403,127.61,127.59,0.05505933]
[1742490514114,0.04975983,127.62,127.6,31.06]
[1742490514320,31.06,127.68,127.6,50.78014192]
[1742490514514,31.3,127.68,127.63,7.8385]
[1742490514720,39.1361,127.68,127.61,2.1832]
[1742490515124,39.1361,127.68,127.61,4.1834]
[1742490515433,39.1361,127.68,127.63,0.04971777]
[1742490515622,31.3,127.68,127.63,0.04971777]
[1742490516022,31.3,127.68,127.63,31.32971777]
[1742490516226,31.3,127.68,127.65,7.8371]
[1742490517118,7.8352,127.69,127.65,7.8371]
[1742490517526,7.8352,127.69,127.66,0.05714033]
[1742490519432,7.8364,127.67,127.66,0.05714033]
[1742490519830,31.2,127.67,127.66,0.05714033]
[1742490520531,1.36366308,127.71,127.69,7.8348]
[1742490520733,31.34,127.75,127.69,7.8348]
[1742490521030,7.8331,127.73,127.69,7.8909485]
[1742490521230,31.32,127.72,127.7,7.8344]
[1742490521646,31.32,127.72,127.69,0.0561485]
[1742490522325,31.32,127.72,127.69,7.8907485]
[1742490522727,31.32,127.72,127.7,7.8344]
[1742490523134,31.3,127.74,127.7,7.8344]
[1742490523524,31.3,127.74,127.71,0.05865553]
[1742490523829,31.28,127.74,127.71,0.05865553]
[1742490524230,39.1124,127.74,127.71,0.05865553]
[1742490524735,7.8327,127.73,127.71,0.05865553]
[1742490524923,31.28,127.74,127.71,0.05865553]
[1742490525128,31.51481206,127.76,127.71,0.05865553]
[1742490525333,39.0918,127.75,127.71,0.05865553]
[1742490525632,7.8318,127.75,127.71,0.05865553]
[1742490525833,31.24,127.74,127.71,7.89255553]
[1742490526224,37.68941206,127.78,127.71,7.89255553]
[1742490526424,7.8313,127.76,127.71,7.89255553]
[1742490526731,31.22,127.77,127.71,7.89255553]
[1742490527134,7.8309,127.76,127.71,7.89255553]
[1742490527335,31.2,127.75,127.71,0.05865553]
[1742490527738,39.0318,127.75,127.71,0.05865553]
[1742490528038,39.0318,127.75,127.71,7.89225553]
[1742490528438,7.8322,127.74,127.71,7.89225553]
[1742490528639,7.8322,127.74,127.71,0.05865553]
[1742490529340,7.8322,127.74,127.71,7.89245553]
[1742490529638,7.8322,127.74,127.71,0.05865553]
[1742490529839,31.2,127.75,127.71,0.05865553]
[1742490530436,7.8333,127.72,127.71,0.05865553]
[1742490530739,38.9733,127.72,127.71,0.05865553]
[1742490531845,31.14,127.72,127.71,0.05865553]
[1742490532137,31.12,127.75,127.71,0.05865553]
[1742490532337,7.8328,127.73,127.71,0.05865553]
[1742490532535,31.12,127.74,127.71,0.05865553]
[1742490533242,31.12,127.74,127.72,7.8333]
[1742490534038,31.12,127.74,127.73,7.8327]
[1742490534237,6.3376,127.85,127.71,258.59865553]
[1742490534536,32.87751397,127.8,127.73,7.8325]
[1742490534740,7.8297,127.78,127.76,0.05649426]
[1742490535133,1.36251517,127.8,127.76,0.05649426]
[1742490535334,59.28700249,127.82,127.76,0.05649426]
[1742490535639,31.8,127.82,127.76,0.05649426]
[1742490535838,31.78,127.81,127.76,0.05649426]
[1742490536143,51.43950249,127.81,127.76,0.05649426]
[1742490536535,19.65950249,127.79,127.76,0.05649426]
[1742490536737,31.76,127.78,127.76,0.05649426]
[1742490537638,31.76,127.78,127.76,7.88709426]
[1742490538031,31.74,127.8,127.76,0.05649426]
[1742490538343,31.74,127.8,127.77,7.8299]
[1742490538642,31.74,127.8,127.76,0.05649426]
[1742490538945,19.65950249,127.79,127.76,0.05649426]
[1742490539135,19.65950249,127.77,127.76,0.05649426]
[1742490539338,51.43950249,127.77,127.7,2.044]
[1742490539843,19.65950249,127.73,127.67,1.9762]
[1742490540043,31.78,127.72,127.66,278.15950249]
[1742490540338,31.78,127.72,127.7,7.8342]
[1742490540539,31.78,127.72,127.68,19.70942196]
[1742490540739,0.05406787,127.72,127.68,19.70942196]
[1742490540941,0.05406787,127.72,127.71,7.8339]
[1742490541236,31.96,127.8,127.71,63.26990774]
[1742490541441,31.96,127.8,127.76,7.8304]
[1742490541631,7.8267,127.83,127.75,63.42990774]
[1742490541835,37.83682396,127.84,127.8,7.8279]
[1742490542236,45.66312396,127.84,127.81,0.05611048]
[1742490542433,5.87682396,127.84,127.83,7.8266]
[1742490542632,5.87682396,127.84,127.81,0.05611048]
[1742490543440,5.87682396,127.84,127.83,7.8266]
[1742490544749,5.87682396,127.84,127.82,7.8269]
[1742490545047,5.87682396,127.84,127.81,0.05611048]
[1742490545347,32.24,127.87,127.81,0.05611048]
[1742490545835,7.8258,127.85,127.81,0.05611048]
[1742490546040,32.26,127.84,127.81,0.05611048]
[1742490546646,40.086,127.84,127.81,0.05611048]
[1742490546849,32.26,127.84,127.81,0.05611048]
[1742490547045,32.26,127.84,127.82,7.8268]
[1742490547445,32.26,127.84,127.81,7.88361048]
[1742490547749,32.26,127.84,127.81,0.05611048]
[1742490548142,40.0862,127.84,127.81,0.05611048]
[1742490548845,32.26,127.84,127.81,0.05611048]
[1742490549349,40.086,127.84,127.81,0.05611048]
[1742490550344,63.72990774,127.84,127.81,0.05611048]
[1742490550551,1.9796,127.83,127.81,0.05611048]
[1742490550745,7.8272,127.82,127.81,0.05611048]
[1742490550945,1.9796,127.83,127.76,2.0297]
[1742490551152,32.18,127.82,127.76,2.0297]
[1742490551351,7.8296,127.79,127.75,258.38]
[1742490551552,32.18,127.79,127.75,258.38]
[1742490551752,40.0094,127.79,127.75,266.2112]
[1742490552246,0.04952527,127.78,127.77,7.8303]
[1742490552439,32.24,127.82,127.75,321.98990774]
[1742490552642,31.46990774,127.86,127.75,321.98990774]
[1742490552846,0.05399227,127.8,127.78,7.8291]
[1742490553054,7.8269,127.83,127.75,321.98990774]
[1742490553346,0.05660599,127.8,127.78,0.05618703]
[1742490553548,32.32,127.82,127.75,290.52]
[1742490553753,0.05023044,127.8,127.78,0.05022329]
[1742490555549,0.05023044,127.8,127.79,7.829]
[1742490556757,0.05023044,127.8,127.78,7.87962329]
[1742490557357,0.05023044,127.8,127.79,7.829]
[1742490561155,0.05023044,127.8,127.78,7.87952329]
[1742490561362,0.05023044,127.8,127.78,0.05022329]
[1742490562460,0.05023044,127.8,127.79,7.829]
[1742490563150,31.54705877,127.92,127.78,0.05022329]
[1742490563454,19.65416427,127.9,127.81,19.65416427]
[1742490563656,19.65416427,127.9,127.84,7.8255]
[1742490563855,21.72486427,127.92,127.83,51.97416427]
[1742490564061,34.3907,127.92,127.85,19.65416427]
[1742490564252,34.3907,127.92,127.88,7.8229]
[1742490564453,34.3907,127.92,127.85,19.65416427]
[1742490564454,34.3907,127.92,127.87,0.05784571]
[1742490564652,384.63,127.91,127.68,432.14351948]
[1742490564950,19.65416427,127.81,127.73,4.1679]
[1742490565149,32.3,127.8,127.73,4.1679]
[1742490565351,32.3,127.8,127.74,7.8318]
[1742490565555,32.3,127.8,127.74,18.7143326]
[1742490565755,32.3,127.8,127.74,10.8825326]
[1742490565952,0.05959067,127.78,127.76,0.04975623]
[1742490566554,0.05959067,127.78,127.76,7.88035623]
[1742490566754,0.05959067,127.78,127.76,0.04975623]
[1742490573267,32.28,127.77,127.69,10.8825326]
[1742490573462,32.28,127.77,127.69,12.8590326]
[1742490573665,7.8317,127.75,127.7,7.8345]
[1742490573870,32.28,127.74,127.7,7.8345]
[1742490574368,32.28,127.74,127.71,0.04983789]
[1742490574369,0.056942,127.73,127.71,0.04983789]
[1742490575870,7.889742,127.73,127.71,0.04983789]
[1742490576073,0.056942,127.73,127.71,0.04983789]
[1742490576265,7.8333,127.72,127.64,32.16]
[1742490576467,32.16,127.71,127.64,32.16]
[1742490576968,32.16,127.71,127.64,32.14]
[1742490577276,32.16,127.71,127.63,38.3104]
[1742490577473,0.05623731,127.69,127.66,0.05383601]
[1742490578775,3.731e-05,127.69,127.68,7.8358]
[1742490578974,3.731e-05,127.69,127.68,12.0121]
[1742490579379,3.731e-05,127.69,127.68,43.46934439]
[1742490580573,32.34,127.77,127.68,301.91354439]
[1742490580780,32.34,127.77,127.69,1.9943]
[1742490580981,32.34,127.77,127.7,32.36]
[1742490581175,32.34,127.77,127.75,7.8314]
[1742490581781,32.39886317,127.77,127.75,7.88696113]
[1742490583082,32.39886317,127.77,127.75,0.05556113]
[1742490583583,32.39886317,127.77,127.75,7.88676113]
[1742490584085,32.39886317,127.77,127.76,7.8309]
[1742490584683,32.39886317,127.77,127.75,7.88656113]
[1742490585085,32.39886317,127.77,127.75,0.05556113]
[1742490585285,32.39886317,127.77,127.76,7.8309]
[1742490586385,0.05886317,127.77,127.76,7.8309]
[1742490597695,6.317e-05,127.77,127.76,39.7109]
[1742490597896,19.65449494,127.84,127.82,7.8272]
[1742490598099,31.86,127.83,127.82,7.8272]
[1742490598292,19.65449494,127.88,127.78,19.65449494]
[1742490598493,279.61821659,127.9,127.8,19.65449494]
[1742490598693,34.0468,127.87,127.82,19.65449494]
[1742490599094,31.86,127.87,127.86,7.8248]
[1742490600294,31.86,127.87,127.84,7.8256]
[1742490600494,31.86,127.87,127.83,0.05206274]
[1742490600697,0.05412901,127.88,127.83,0.05206274]
[1742490600994,0.05412901,127.88,127.87,7.8241]
[1742490601695,0.05412901,127.88,127.86,0.05255898]
[1742490601696,31.72,127.91,127.86,31.45322784]
[1742490602196,31.72,127.91,127.9,7.8223]
[1742490602700,31.7,127.92,127.86,31.40066886]
[1742490602900,31.7,127.92,127.89,7.88292666]
[1742490603196,31.7,127.92,127.89,0.06032666]
[1742490603601,31.7,127.92,127.83,31.7]
[1742490603801,31.7,127.92,127.84,7.8256]
[1742490604195,31.7,127.92,127.82,33.56936886]
[1742490604400,7.8226,127.9,127.85,7.8249]
[1742490604596,31.66,127.89,127.85,7.8249]
[1742490604805,31.71342726,127.89,127.86,0.05446866]
[1742490605102,31.71342726,127.89,127.8,260.4562]
[1742490605301,31.66,127.89,127.8,260.4562]
[1742490605599,63.06066886,127.89,127.8,260.4562]
[1742490605792,2.1616,127.88,127.8,260.4562]
[1742490605996,7.8245,127.87,127.82,7.8269]
[1742490606192,31.62,127.86,127.82,7.8269]
[1742490606394,31.67889797,127.86,127.83,0.05457226]
[1742490606598,31.67889797,127.86,127.76,31.6]
[1742490606792,31.62,127.86,127.76,31.6]
[1742490606998,31.40066886,127.85,127.76,31.6]
[1742490607196,31.62,127.86,127.78,7.8293]
[1742490607398,31.40066886,127.85,127.78,7.8293]
[1742490607596,7.8276,127.82,127.77,7.8299]
[1742490607797,31.56,127.81,127.8,0.05441569]
[1742490608199,39.3878,127.81,127.8,0.05441569]
[1742490609493,31.56,127.81,127.74,4.1434]
[1742490610000,7.8302,127.78,127.74,7.8318]
[1742490610200,31.5,127.77,127.74,7.8318]
[1742490610506,39.3307,127.77,127.73,7.8326]
[1742490610703,31.55956749,127.77,127.74,0.05839915]
[1742490611091,39.38986749,127.77,127.74,0.05839915]
[1742490611296,31.55956749,127.77,127.74,0.05839915]
[1742490611499,31.46,127.76,127.74,0.05839915]
[1742490612806,31.46,127.76,127.7,7.8342]
[1742490613006,31.46,127.76,127.69,258.3]
[1742490613500,31.46,127.76,127.71,7.8335]
[1742490613906,31.46,127.76,127.69,258.3]
[1742490613907,0.05549318,127.75,127.72,0.04967896]
[1742490616510,7.88709318,127.75,127.72,0.04967896]
[1742490616704,39.28776204,127.75,127.72,0.04967896]
[1742490616905,41.35566204,127.75,127.72,0.04967896]
[1742490617206,33.52406204,127.75,127.72,0.04967896]
[1742490617898,35.67536204,127.75,127.72,0.04967896]
[1742490618311,43.50706204,127.75,127.72,0.04967896]
[1742490618907,7.8321,127.74,127.72,0.04967896]
[1742490619106,31.26,127.73,127.72,0.04967896]
[1742490621607,39.0927,127.73,127.72,0.04967896]
[1742490621805,31.26,127.73,127.72,0.04967896]
[1742490622410,39.0927,127.73,127.72,0.04967896]
[1742490622810,7.8341,127.71,127.66,6.1714]
[1742490623010,31.12,127.7,127.64,258.4]
[1742490623311,50.81605435,127.7,127.64,258.4]
[1742490623511,58.65095435,127.7,127.66,7.8366]
[1742490624010,0.05121026,127.69,127.67,0.0586515]
[1742490624211,19.69605435,127.68,127.6,26.11585435]
[1742490624414,27.53335435,127.66,127.62,7.8392]
[1742490625112,7.8377,127.65,127.62,7.8392]
[1742490625315,31.1,127.64,127.62,7.8392]
[1742490625515,31.1,127.64,127.63,7.8389]
[1742490625713,31.1,127.64,127.62,0.05628623]
[1742490626202,0.0534409,127.65,127.62,0.05628623]
[1742490626603,0.0534409,127.65,127.64,7.8382]
[1742490626810,31.04,127.69,127.63,31.5327889]
[1742490627923,31.04,127.69,127.68,7.8358]
[1742490628617,31.04,127.69,127.65,0.05688873]
[1742490630118,31.04,127.69,127.68,7.8358]
[1742490631113,0.05781489,127.7,127.69,7.8352]
[1742490631612,30.9,127.75,127.68,30.95927122]
[1742490631813,30.9,127.75,127.68,30.9]
[1742490632013,7.8307,127.77,127.69,33.5816889]
[1742490632217,30.9,127.76,127.69,33.5816889]
[1742490632414,258.56,127.78,127.69,33.5816889]
[1742490632617,38.7103,127.77,127.74,7.8317]
[1742490632920,0.05828525,127.75,127.74,7.8317]
[1742490633624,0.05828525,127.75,127.72,0.05397624]
[1742490634026,0.05828525,127.75,127.72,7.88707624]
[1742490635926,0.05828525,127.75,127.72,0.05397624]
[1742490637826,0.05828525,127.75,127.73,7.8326]
[1742490638022,0.05828525,127.75,127.72,0.05397624]
[1742490638420,0.05828525,127.75,127.74,7.8321]
[1742490640328,7.8275,127.82,127.74,39.3527889]
[1742490640532,7.8275,127.82,127.75,2.1592]
[1742490640830,7.8279,127.81,127.75,2.1592]
[1742490641026,30.64,127.83,127.75,2.1592]
[1742490641524,0.05111039,127.8,127.79,7.829]
[1742490641935,0.05111039,127.8,127.78,7.8890877]
[1742490642139,0.05111039,127.8,127.78,0.0597877]
[1742490642633,30.63111039,127.8,127.78,0.0597877]
[1742490643435,7.829,127.79,127.78,0.0597877]
[1742490644543,7.8304,127.77,127.72,258.5]
[1742490644741,30.52,127.76,127.72,258.5]
[1742490644942,30.52,127.76,127.73,7.8324]
[1742490645140,38.3509,127.76,127.73,7.8324]
[1742490645344,30.52,127.76,127.72,258.5]
[1742490645540,30.52,127.76,127.73,0.0546459]
[1742490645541,7.89126972,127.75,127.73,0.0546459]
[1742490647139,7.8321,127.74,127.73,0.0546459]
[1742490648643,7.835,127.7,127.67,7.8361]
[1742490648938,30.42,127.69,127.67,7.8361]
[1742490649144,30.42,127.69,127.68,7.8358]
[1742490649545,30.42,127.69,127.63,33.6297889]
[1742490649944,0.0535161,127.67,127.65,0.05877249]
[1742490650141,0.0535161,127.67,127.66,7.837]
[1742490650444,0.0535161,127.67,127.65,0.05877249]
[1742490651243,0.0535161,127.67,127.66,7.837]
[1742490651839,5.64524254,127.75,127.66,38.18]
[1742490651840,1.36334254,127.75,127.66,38.18]
[1742490652040,30.32,127.77,127.69,31.5327889]
[1742490652346,30.34,127.76,127.73,7.8324]
[1742490652942,30.34,127.76,127.73,7.89078939]
[1742490653144,30.39909007,127.76,127.73,0.05838939]
[1742490654050,30.39909007,127.76,127.73,7.89098939]
[1742490655144,30.39909007,127.76,127.73,0.05838939]
[1742490655746,30.39909007,127.76,127.73,7.89108939]
[1742490656154,30.39909007,127.76,127.73,0.05838939]
[1742490658053,31.5327889,127.75,127.69,7.8346]
[1742490658848,7.833,127.73,127.69,7.8346]
[1742490659046,30.18,127.72,127.7,7.8345]
[1742490659250,30.23915451,127.72,127.7,7.88769787]
[1742490660363,30.23915451,127.72,127.71,7.8339]
[1742490660545,0.05915451,127.72,127.71,7.8339]
[1742490660751,30.25915451,127.72,127.71,7.8339]
[1742490660949,30.25915451,127.72,127.63,288.68]
[1742490661154,30.25915451,127.72,127.63,258.5]
[1742490661155,30.2,127.72,127.63,258.5]
[1742490661444,7.8364,127.67,127.63,258.5]
[1742490661649,30.16,127.66,127.63,258.5]
[1742490661848,30.16,127.66,127.6,36.4525]
[1742490662050,30.16,127.66,127.62,7.839]
[1742490662248,0.05713497,127.64,127.62,7.88930205]
[1742490662855,0.05713497,127.64,127.62,0.05030205]
[1742490664451,0.05713497,127.64,127.62,7.88950205]
[1742490664952,0.05713497,127.64,127.62,0.05030205]
[1742490665651,30.08,127.63,127.62,0.05030205]
[1742490666749,37.9189,127.63,127.62,0.05030205]
[1742490668557,37.9189,127.63,127.53,65.5548889]
[1742490668558,61.6127889,127.63,127.53,65.5548889]
[1742490668756,63.7183889,127.63,127.56,7.843]
[1742490669361,63.7183889,127.63,127.57,7.8424]
[1742490669566,0.05767766,127.61,127.59,0.05290286]
[1742490669764,30.0,127.6,127.59,0.05290286]
[1742490670362,7.89797766,127.61,127.59,0.05290286]
[1742490670562,0.05767766,127.61,127.59,0.05290286]
[1742490670961,0.05767766,127.61,127.59,7.89360286]
[1742490671461,0.05767766,127.61,127.59,0.05290286]
[1742490671658,0.05767766,127.61,127.6,7.8407]
[1742490675870,0.05767766,127.61,127.59,7.89400286]
[1742490676066,0.05767766,127.61,127.59,0.05290286]
[1742490676873,29.89767766,127.61,127.59,7.89420286]
[1742490678066,29.89767766,127.61,127.59,0.05290286]
[1742490678461,29.89767766,127.61,127.59,7.89410286]
[1742490678969,29.89767766,127.61,127.59,0.05290286]
[1742490680567,37.73777766,127.61,127.59,0.05290286]
[1742490681772,7.8407,127.6,127.59,0.05290286]
[1742490682166,0.05767766,127.61,127.59,0.05290286]
[1742490682363,0.05767766,127.61,127.59,61.48569176]
[1742490682660,29.9,127.66,127.59,61.48569176]
[1742490682864,37.7373,127.66,127.59,29.9]
[1742490683260,2.0696,127.68,127.59,29.9]
[1742490683462,37.7368,127.67,127.59,29.9]
[1742490683667,0.05114245,127.65,127.62,0.05335634]
[1742490683870,0.05114245,127.65,127.63,7.8384]
[1742490684779,0.05114245,127.65,127.62,7.89255634]
[1742490685073,7.88904245,127.65,127.62,7.89255634]
[1742490685478,29.86,127.64,127.62,7.89255634]
[1742490685679,29.86,127.64,127.63,7.8389]
[1742490686374,0.05114245,127.65,127.64,7.8382]
[1742490687370,2.1741,127.72,127.63,31.5327889]
[1742490687569,29.86,127.71,127.65,31.5327889]
[1742490687776,29.86,127.71,127.66,2.018]
[1742490688372,7.835,127.7,127.63,31.864]
[1742490688571,29.93396419,127.7,127.67,0.05296601]
[1742490688975,0.05396419,127.7,127.67,0.05296601]
[1742490689466,0.05396419,127.7,127.67,31.58575491]
[1742490689670,0.05396419,127.7,127.67,4.22006601]
[1742490690070,0.05396419,127.7,127.69,7.8352]
[1742490690875,0.05396419,127.7,127.67,0.05296601]
[1742490691375,0.05396419,127.7,127.69,7.8352]
[1742490691878,0.05396419,127.7,127.68,7.8356]
[1742490692580,0.05396419,127.7,127.69,7.8352]
[1742490693379,30.18,127.76,127.69,30.14]
[1742490693564,30.18,127.76,127.7,35.6390889]
[1742490693964,258.7,127.79,127.7,35.6390889]
[1742490694170,30.2,127.77,127.7,35.6390889]
[1742490694478,0.05742987,127.75,127.73,0.05663713]
[1742490695676,30.18,127.8,127.73,30.23663713]
[1742490696072,7.8295,127.79,127.73,30.23663713]
[1742490696268,30.18,127.8,127.73,30.23663713]
[1742490696676,30.16,127.79,127.73,30.23663713]
[1742490696876,30.20956288,127.78,127.73,30.18]
[1742490697074,30.20956288,127.78,127.75,0.05251256]
[1742490697476,30.18956288,127.78,127.75,0.05251256]
[1742490698175,0.04956288,127.78,127.75,0.05251256]
[1742490699073,0.04956288,127.78,127.75,7.88361256]
[1742490700480,0.04956288,127.78,127.75,0.05251256]
[1742490700871,7.8309,127.76,127.75,0.05251256]
[1742490701275,0.04956288,127.78,127.75,0.05251256]
[1742490701878,7.8303,127.77,127.75,0.05251256]
[1742490702578,0.04956288,127.78,127.75,7.88391256]
[1742490703177,7.87946288,127.78,127.75,7.88391256]
[1742490703780,0.04956288,127.78,127.75,7.88391256]
[1742490703981,0.04956288,127.78,127.75,0.05251256]
[1742490704984,7.87956288,127.78,127.75,0.05251256]
[1742490705375,0.04956288,127.78,127.75,0.05251256]
[1742490706071,0.04956288,127.78,127.77,7.8303]
[1742490706570,0.04956288,127.78,127.75,0.05251256]
[1742490706971,0.04956288,127.78,127.76,7.8304]
[1742490707177,0.04956288,127.78,127.75,0.05251256]
[1742490708183,0.04956288,127.78,127.76,7.8305]
[1742490709084,0.04956288,127.78,127.75,0.05251256]
[1742490709680,0.04956288,127.78,127.77,7.8303]
[1742490711684,0.04956288,127.78,127.76,7.8306]
[1742490712075,0.04956288,127.78,127.75,0.05251256]
[1742490712787,7.87956288,127.78,127.75,7.88371256]
[1742490713287,7.87956288,127.78,127.76,7.8308]
[1742490713883,7.87956288,127.78,127.75,7.88371256]
[1742490714189,30.36,127.86,127.76,31.5327889]
[1742490714384,30.36,127.86,127.8,7.8281]
[1742490714678,30.36,127.86,127.78,30.34]
[1742490714885,31.5327889,127.85,127.76,11.8505]
[1742490715285,7.8294,127.79,127.76,11.8505]
[1742490715685,7.8872759,127.79,127.76,11.90832629]
[1742490715879,7.8872759,127.79,127.77,7.8303]
[1742490716279,0.0578759,127.79,127.77,7.8303]
[1742490716787,0.0578759,127.79,127.76,9.92482629]
[1742490716987,0.0578759,127.79,127.76,2.09432629]
[1742490717488,0.0578759,127.79,127.76,9.92502629]
[1742490718181,0.0578759,127.79,127.76,0.05782629]
[1742490721082,0.0578759,127.79,127.77,7.8299]
[1742490721285,0.0578759,127.79,127.76,0.05782629]
[1742490721485,9.9817,127.85,127.81,7.8277]
[1742490721700,30.26,127.84,127.77,35.5765889]
[1742490722084,38.0863,127.84,127.77,35.5765889]
[1742490722692,0.05400204,127.82,127.8,7.8279]
[1742490722893,0.05400204,127.82,127.79,0.05950028]
[1742490723293,0.05400204,127.82,127.81,7.8278]
[1742490725196,30.16,127.84,127.79,31.59228918]
[1742490725391,30.16,127.85,127.79,31.59228918]
[1742490725598,30.16,127.85,127.83,7.8263]
[1742490726400,30.2140637,127.85,127.84,7.826]
[1742490726601,6.37e-05,127.85,127.84,7.826]
[1742490729390,6.37e-05,127.85,127.84,9.876]
[1742490730399,30.26,127.92,127.84,2.05]
[1742490730603,30.26,127.94,127.86,31.5327889]
[1742490730805,30.26,127.94,127.91,7.8212]
[1742490731208,12.1147,127.95,127.91,7.8212]
[1742490731508,30.24,127.94,127.91,7.87968189]
[1742490731703,38.0599,127.94,127.91,7.87968189]
[1742490732207,30.24,127.94,127.92,7.8209]
[1742490732504,30.22,127.94,127.91,0.05848189]
[1742490732899,9.9071,127.96,127.91,0.05848189]
[1742490733099,7.8187,127.96,127.91,0.05848189]
[1742490733307,30.2,127.95,127.91,0.05848189]
[1742490733900,7.819,127.96,127.92,7.8209]
[1742490734104,30.2,127.95,127.92,7.8209]
[1742490734303,30.2,127.95,127.91,0.05848189]
[1742490734505,30.2,127.95,127.93,7.8203]
[1742490734704,30.2,127.95,127.91,0.05848189]
[1742490735004,38.0194,127.95,127.91,7.87968189]
[1742490735307,4.0593,127.99,127.91,0.05848189]
[1742490735504,30.18,127.98,127.9,33.5822889]
[1742490735699,30.18,127.98,127.94,0.05142917]
[1742490736100,7.8184,127.97,127.94,0.05142917]
[1742490736296,37.9784,127.97,127.94,0.05142917]
[1742490737311,30.16,127.97,127.94,7.87122917]
[1742490737910,30.16,127.97,127.94,0.05142917]
[1742490738507,7.8193,127.95,127.94,0.05142917]
[1742490738707,31.5327889,127.96,127.89,7.8228]
[1742490739211,7.8216,127.92,127.89,7.8228]
[1742490739412,37.9216,127.92,127.89,7.8228]
[1742490739814,7.8224,127.9,127.89,0.06011905]
[1742490740811,7.8246,127.87,127.84,7.8257]
[1742490741816,30.1,127.88,127.83,7.8263]
[1742490741817,7.8249,127.86,127.83,7.8263]
[1742490742116,7.8249,127.86,127.84,0.05265052]
[1742490742316,7.8252,127.86,127.84,0.05265052]
[1742490742518,0.0534212,127.87,127.84,0.05265052]
[1742490743212,7.8253,127.86,127.84,0.05265052]
[1742490743515,30.08,127.85,127.84,0.05265052]